Cogmind - Beta 16 @@@ ROGUE MODE // 2025.10.21 @ 23:41:09 Player: GolbalwarmingLord Result: Destroyed by G-47 Trooper with Particle Gun Performance ------------- Evolutions (1) 500 Regions Visited (3) 600 Robots Destroyed (46) 230 Value Destroyed (946) 946 Prototype IDs (2) 40 Alien Tech Used (0) 0 Bonus (153) 153 TOTAL SCORE: 2469 Bonus ------- Follower Combat Kills 153 Cogmind --------- Core Integrity 0/400 Matter 211/300 Energy 100/100 System Corruption 0% Temperature Cool (9) Movement Core (450) Ox8 Location -9/Materials Parts ------- > --- POWER (1) -------- (None) > --- PROPULSION (2) --- (None) > --- UTILITY (4) ------ Large Storage Unit Advanced Targeting Computer Melee Analysis Suite > --- WEAPON (2) ------- Rocket Launcher Axe > --- INVENTORY (15) --- Ion Engine Improved Aluminum Leg Improved Medium Laser Autogun Rocket Launcher Rocket Launcher Axe Peak State ------------ > --- POWER ------------ Cooled Ion Engine > --- PROPULSION ------- Improved Treads Improved Treads > --- UTILITY ---------- Large Storage Unit Improved Terrain Scanner Advanced Targeting Computer Melee Analysis Suite > --- WEAPON ----------- Improved Light Cannon Axe > --- INVENTORY -------- Ion Engine Ion Engine Improved Treads Improved Aluminum Leg Improved Medium Laser Autogun Autogun Autogun Autogun Improved Light Cannon Axe [Rating: 24] Favorites ----------- Power Ion Engine Engine Ion Engine Propulsion Improved Treads Treads Improved Treads Wheel Wheel Utility Large Storage Unit Device Improved Terrain Scanner Storage Large Storage Unit Processor Advanced Targeting Computer Weapon Autogun Energy Gun Improved Medium Laser Ballistic Gun Autogun Ballistic Cannon Improved Light Cannon Launcher Rocket Launcher Impact Weapon Hammer Slashing Weapon Axe Build | -11 -10 -10 -9 ------- Run | Yrd Mat Min Mat Slots Evolved 2 | . . . 2 Power . | . . . . Propulsion . | . . . . Utility 2 | . . . 2 Weapon . | . . . . Parts Attached 31 | 9 9 1 12 Power 3 | 1 1 . 1 Engine 3 | 1 1 . 1 Core . | . . . . Reactor . | . . . . Propulsion 8 | 4 2 1 1 Treads 6 | 2 2 1 1 Leg . | . . . . Wheel 2 | 2 . . . Hover . | . . . . Flight . | . . . . Utility 7 | 2 2 . 3 Device 3 | 1 1 . 1 Storage 2 | 1 1 . . Processor 2 | . . . 2 Hackware . | . . . . Protection . | . . . . Artifact . | . . . . Weapon 13 | 2 4 . 7 Energy Gun 1 | . . . 1 Energy Cannon . | . . . . Ballistic Gun 5 | 2 2 . 1 Ballistic Cannon 2 | . . . 2 Launcher 1 | . . . 1 Special Weapon . | . . . . Impact Weapon 2 | . 2 . . Slashing Weapon 2 | . . . 2 Piercing Weapon . | . . . . Special Melee Weapon . | . . . . Unidentified Prototypes 2 | . . . 2 Parts Lost 13 | . . 2 11 Power 2 | . . . 2 Propulsion 4 | . . 1 3 Utility 3 | . . 1 2 Weapon 4 | . . . 4 Highest Loss Streak 10 | . . 2 10 To Critical Strikes . | . . . . Average Backups 7 | 1 6 7 9 Power . | . . 1 1 Propulsion 1 | 1 2 1 1 Utility . | . . 1 . Weapon 4 | . 3 4 6 Tool/Special . | . . . . Unused Backups 4 | 2 . . 2 Power . | . . . . Propulsion 3 | 2 . . 1 Utility . | . . . . Weapon 1 | . . . 1 Tool/Special . | . . . . Average Slot Usage (%) 94 | . 99 94 83 Engine 12 | . 14 14 9 Treads 24 | . 26 28 18 Device 12 | . 14 8 12 Storage 13 | . 14 14 11 Processor 2 | . . . 9 Ballistic Gun 15 | . 22 15 3 Ballistic Cannon 2 | . . . 7 Impact Weapon 5 | . 4 12 3 Slashing Weapon 1 | . . . 4 Peak Build Rating 24 | 9 14 12 24 Average Rating 13 | 5 12 10 17 On Entrance 7 | . 9 12 10 Avg Prop Armor Cover (%) . | . . . . Naked Turns . | . . . . Heaviest Build 38 | 13 32 32 38 Greatest Support 46 | 40 46 46 46 Greatest Overweight (x) 9 | . 3 1 9 Average Overweight (x) . | . . . . Largest Inventory Capacity 15 | 8 15 15 15 Average Capacity 14 | 7 13 15 15 Most Carried 12 | 3 8 8 12 Average Carried 7 | 1 6 7 9 Final Capacity 15 | 8 15 15 15 Final Carried 8 | 2 8 7 7 Class Distribution -------------------- 100% | Mutant Dominant Class ---------------- Mutant | -10/Materials Mutant | -10/Mines Mutant | -9/Materials Resources | -11 -10 -10 -9 ----------- Run | Yrd Mat Min Mat Matter Collected 1219 | 269 353 196 401 Remotely . | . . . . Salvage Created 1214 | 129 406 79 600 Parts 82 | 12 24 1 45 Haulers Intercepted 2 | . 1 . 1 Recyclers Shooed 2 | . 1 . 1 Parts Field Recycled . | . . . . Retrieved Matter . | . . . . Parts Self-Destructed . | . . . . Prevented . | . . . . Parts Restored . | . . . . Kills | -11 -10 -10 -9 ------- Run | Yrd Mat Min Mat Combat Hostiles Destroyed 26 | . 13 . 13 Melee 2 | . . . 2 Guns 17 | . 13 . 4 Cannons 5 | . . . 5 AOE 2 | . . . 2 Classes Destroyed 9 | 3 3 1 2 Worker 9 | 2 1 3 3 Builder 4 | . . 1 3 Tunneler 4 | 3 . 1 . Hauler 2 | . 1 . 1 Recycler 1 | 1 . . . Swarmer 6 | . 6 . . Grunt 16 | . 7 . 9 Duelist 3 | . . . 3 Sentry 1 | . . . 1 Best Kill Streak 3 | 3 3 3 3 Combat Bots Only 3 | . 3 . 3 Max Kills in Single Turn 2 | 1 1 1 2 Gunslinging . | . . . . Exploded 1 | . . . 1 Melee 1 | . . . 1 Uniques/NPCs Destroyed . | . . . . Combat | -11 -10 -10 -9 -------- Run | Yrd Mat Min Mat Hostile Shots Fired 165 | . 48 22 95 Missed 46 | . 17 7 22 Hits 119 | . 31 15 73 Melee 25 | . . . 25 Projectile 94 | . 31 15 48 Critical Strikes 8 | . . . 8 Damage Taken 2027 | . 376 235 1416 Core 473 | . 39 27 407 Absorbed by Shields . | . . . . Core Remaining (%) 86 | 100 . 73 . Volleys Fired 124 | 24 40 9 51 Largest 2 | 2 2 1 2 Hottest 66 | 40 46 23 66 Shots Fired 202 | 48 75 10 69 Gun 168 | 48 75 10 35 Cannon 31 | . . . 31 Launcher 3 | . . . 3 Special . | . . . . Kinetic 191 | 48 75 10 58 Thermal 8 | . . . 8 Explosive 3 | . . . 3 Electromagnetic . | . . . . Robot Hit Streak 10 | 10 9 5 10 Robot Miss Streak 3 | 1 3 3 2 Penetration Max . | . . . . Secondary Targets . | . . . . Shots Hit Robots 158 | 35 45 12 66 Core Hits 61 | 12 21 1 27 Critical Kills . | . . . . Critical Parts Destroyed 1 | . . . 1 Critical Strikes 4 | . . . 4 Blast 2 | . . . 2 Smash 1 | . . . 1 Sever 1 | . . . 1 Melee Attacks 53 | . 26 6 21 Impact 35 | . 26 6 3 Slashing 18 | . . . 18 Piercing . | . . . . Sneak Attacks 11 | . 1 4 6 Combat Hostiles . | . . . . Follow-up Attacks . | . . . . Damage Inflicted 3184 | 287 799 313 1785 Guns 1405 | 287 650 77 391 Cannons 510 | . . . 510 Explosions 327 | . 75 . 252 Melee 922 | . 54 236 632 Ramming 20 | . 20 . . Kinetic 1813 | 287 650 77 799 Thermal 102 | . . . 102 Explosive 327 | . 75 . 252 Electromagnetic . | . . . . Impact 421 | . 54 236 131 Slashing 501 | . . . 501 Piercing . | . . . . Highest Corruption 2 | . 2 2 . Average Corruption 2 | . 2 2 . Corruption Purged . | . . . . Corruption Blocked . | . . . . Effects 22 | . 13 9 . Message Errors 3 | . 3 . . Matter Fused 6 | . 3 3 . Heat Flow Errors 4 | . 2 2 . Energy Discharges 1 | . 1 . . Data Loss (minor) 7 | . 4 3 . Misfires 1 | . . 1 . Overload Shots . | . . . . Overflow Damage 181 | . 34 56 91 Projectiles . | . . . . Explosions . | . . . . Melee 181 | . 34 56 91 Knockbacks 4 | . . 2 2 Impact 3 | . . 2 1 Kinetic 1 | . . . 1 Secondary . | . . . . Self-Inflicted Damage 1 | . 1 . . Shots . | . . . . Rammed 7 | . 7 . . Targets Rammed 7 | . 7 . . Kicked . | . . . . Crushed . | . . . . Highest Temperature 275 | . 275 263 78 Average Temperature 46 | . 41 80 26 Received Heat Transfer 507 | . 162 63 282 Siege Activations . | . . . . Martial Activations . | . . . . Shielding Activations . | . . . . Robots Disrupted . | . . . . Combat Hostiles . | . . . . Robots Corrupted 5 | . . 4 1 Combat Hostiles . | . . . . Parts Fried 10 | . 1 8 1 Impact Corruptions 7 | . 1 5 1 Robots Melted . | . . . . Combat Hostiles . | . . . . Parts Melted . | . . . . Heat Transferred 222 | . . . 222 Parts Sabotaged . | . . . . Parts Stolen . | . . . . Parts Stripped . | . . . . Power Chain Reactions . | . . . . Alert | -11 -10 -10 -9 ------- Run | Yrd Mat Min Mat Maximum Alert Level 1 | . 1 . . Low Security (%) 99 | 100 99 100 100 Level 1 . | . . . . Level 2 . | . . . . Level 3 . | . . . . Level 4 . | . . . . Level 5 . | . . . . High Security . | . . . . Max Security . | . . . . Peak Influence 200 | 10 200 78 79 Initial 6 | . . 6 . Average 43 | 1 65 12 28 Influence Increases 1132 | 30 460 147 495 Destroy 0b10 Robot/C 660 | . 260 100 300 Destroy 0b10 Robot/NC 110 | 30 10 25 45 Destroy Leader 136 | . 62 10 64 Allied During Kill 22 | . . 12 10 Successful Hack 5 | . 5 . . Disable Machine 75 | . 60 . 15 Destroy Structure 79 | . 48 . 31 Lose Combat Pursuer 45 | . 15 . 30 Influence Decreases 1062 | 30 444 163 425 Entered New Map 10 | . . 10 . Time Decay 928 | 30 444 143 311 Lost Part 120 | . . 10 110 Lost Ally 4 | . . . 4 Squads Dispatched 1 | . 1 . . Investigation 1 | . 1 . . Extermination . | . . . . Reinforcement . | . . . . Assault . | . . . . Garrison . | . . . . Intercept . | . . . . Searches Triggered . | . . . . Construction Impeded . | . . . . Haulers Reinforced . | . . . . Active Scanning Responses . | . . . . Cargo Convoy Interrupts . | . . . . Stealth | -11 -10 -10 -9 --------- Run | Yrd Mat Min Mat Distress Signals 9 | . 5 . 4 Communications Jammed . | . . . . Distress Signals . | . . . . Times Spotted 56 | . 24 5 27 Peak Tracking Total 5 | . 4 3 5 Tactical Retreats 3 | . 1 . 2 Traps | -11 -10 -10 -9 ------- Run | Yrd Mat Min Mat Traps Triggered 2 | . 2 . . Indirectly . | . . . . Trap Hack Attempts . | . . . . Triggered . | . . . . Disarmed . | . . . . Reprogrammed . | . . . . Reused . | . . . . Traps Extracted . | . . . . Installed . | . . . . Triggered . | . . . . Machines | -11 -10 -10 -9 ---------- Run | Yrd Mat Min Mat Machines Disabled 5 | . 4 . 1 Max in Single Turn 3 | . 3 . 1 Machines Repaired . | . . . . Machines Dismantled . | . . . . Machines Sabotaged . | . . . . Overloaded Fab Kills . | . . . . Hacking | -11 -10 -10 -9 --------- Run | Yrd Mat Min Mat Machines Accessed 7 | . 6 . 1 Terminals 6 | . 5 . 1 Fabricators . | . . . . Repair Stations . | . . . . Recycling Units 1 | . 1 . . Scanalyzers . | . . . . Garrison Access . | . . . . Total Hacks 12 | . 11 . 1 Successful 4 | . 3 . 1 Failed 8 | . 8 . . Catastrophic 1 | . 1 . . Database Lockouts . | . . . . Manual 1 | . 1 . . Terminals 9 | . 8 . 1 Fabricators . | . . . . Repair Stations . | . . . . Recycling Units 3 | . 3 . . Scanalyzers . | . . . . Garrison Access . | . . . . Terminal Hacks 4 | . 3 . 1 Alert Level 2 | . 1 . 1 Locate Traps 1 | . 1 . . Zone Layout 1 | . 1 . . Fabricator Hacks . | . . . . Repair Station Hacks . | . . . . Recycling Unit Hacks . | . . . . Scanalyzer . | . . . . Garrison Access Hacks . | . . . . Unauthorized Hacks . | . . . . Terminals . | . . . . Fabricators . | . . . . Repair Stations . | . . . . Recycling Units . | . . . . Scanalyzers . | . . . . Garrison Access . | . . . . Data Cores Recovered 1 | . . . 1 Used 1 | . . . 1 Hacking Detections 6 | . 5 . 1 Full Trace Events 1 | . 1 . . Feedback Events . | . . . . Feedback Blocked . | . . . . Robot Schematics Acquired . | . . . . Robots Built . | . . . . Authchips . | . . . . Time . | . . . . Total Robot Build Rating . | . . . . Part Schematics Acquired . | . . . . Parts Built . | . . . . Authchips . | . . . . Time . | . . . . Total Part Build Rating . | . . . . Part Studies Acquired . | . . . . Parts Repaired . | . . . . Time . | . . . . Parts Recycled . | . . . . Recycled Matter . | . . . . Retrieved Matter . | . . . . Retrieved Components . | . . . . Parts Scanalyzed . | . . . . Part Schematics Acquired . | . . . . Parts Damaged . | . . . . Bothacking | -11 -10 -10 -9 ------------ Run | Yrd Mat Min Mat Used RIF Installer . | . . . . Robots Hacked . | . . . . Non-combat . | . . . . Combat . | . . . . Robot Hacks Applied . | . . . . Relay Couplers Released . | . . . . Fabnet Peak Effective % . | . . . . Robots Rewired . | . . . . Allies Hacked . | . . . . Hacks Repelled . | . . . . Allies | -11 -10 -10 -9 -------- Run | Yrd Mat Min Mat Total Allies 2 | . . 2 . Largest Group 2 | . . 2 2 Highest-Rated Group 56 | . . 56 56 Highest-Rated Ally 31 | . . 31 31 Total Orders . | . . . . Ally Attacks 22 | . . 11 11 Total Damage 341 | . . 195 146 Kills 9 | . . 5 4 Allies Corrupted . | . . . . Allies Melted . | . . . . Intel | -11 -10 -10 -9 ------- Run | Yrd Mat Min Mat Active Infowar (turns) 2939 | 10 1743 352 834 Terrain 1576 | 10 732 . 834 Seismic 1363 | . 1011 352 . Robot Analysis Total . | . . . . Derelict Logs Recovered 1 | . . 1 . Drone Launches . | . . . . Drone Recoveries . | . . . . Exploration | -11 -10 -10 -9 ------------- Run | Yrd Mat Min Mat Turns Passed 3446 | 190 1743 588 925 Spaces Moved 1823 | 96 997 345 385 Core 23 | 9 2 . 12 Treads 1660 | 44 898 345 373 Legs . | . . . . Wheels 140 | 43 97 . . Hover . | . . . . Flight . | . . . . Fastest Speed 50 | 50 80 160 160 Average Speed 155 | 113 152 160 170 Slowest Speed 500 | 160 200 240 500 Overloaded Moves . | . . . . Propulsion Burnouts . | . . . . Robots Hopped . | . . . . Potential Cave-ins . | . . . . Cave-ins Triggered . | . . . . Exploration Rate (%) 50 | 6 95 65 36 Regions Visited 3 Branch Regions 1 Pre-discovered Areas . | . . . . Known Exits Taken . | . . . . Unknown Exits Taken 3 | 1 1 1 . Scrap Searched 1 | . . 1 . Spaces Dug 11 | . 11 . . Terrain Destroyed 87 | . 46 . 41 Melee 11 | . 11 . . Projectile . | . . . . AOE 76 | . 35 . 41 Terrain Rammed . | . . . . Walls Destroyed . | . . . . Machines Disabled . | . . . . Actions | -11 -10 -10 -9 --------- Run | Yrd Mat Min Mat Total 2159 | 135 1113 362 549 Wait 60 | . 15 1 44 Move 1820 | 95 996 344 385 Hop . | . . . . Pick Up 34 | 5 11 . 18 Fast Attach 6 | 6 . . . Attach 22 | 1 4 1 16 Detach . | . . . . Swap 22 | 2 7 1 12 Drop 11 | 2 7 . 2 Fire 124 | 24 40 9 51 Melee 53 | . 26 6 21 Ram 1 | . 1 . . Kick . | . . . . Crush 6 | . 6 . . Escape Stasis . | . . . . Rewire . | . . . . Trap . | . . . . Miscellaneous . | . . . . Route ------- -11/Scrapyard -10/Materials (discovered 4 exits: *Mat x3 / [*Min]) -10/Mines -9/Materials (discovered 1 exit: [*Mat]) History --------- Turn | Location | Event 20 | -11/Scrapyard | Discovered new exit (range 16) 191 | -11/Scrapyard | Entered Materials 265 | -10/Materials | Discovered new exit (range 14) 318 | -10/Materials | Build established: Mutant 677 | -10/Materials | Discovered new exit (range 10) 1177 | -10/Materials | Discovered new exit (range 16) 1778 | -10/Materials | Discovered new exit (range 16) 1934 | -10/Materials | Entered Mines 2258 | -10/Mines | Discovered new exit (range 11) 2522 | -10/Mines | Entered Materials 2522 | -9/Materials | Accompanied by 2 allies 2522 | -9/Materials | Evolved 2 slots: Utility x2 2527 | -9/Materials | Led the pair of lost Derelicts to an unsafe place 2931 | -9/Materials | Discovered new exit (range 10) 3348 | -9/Materials | Core integrity fell below 50% 3382 | -9/Materials | Core integrity fell below 20% 3421 | -9/Materials | Lost 10 parts (2p3n1u4w) 3447 | -9/Materials | Destroyed by G-47 Trooper with Particle Gun Last Messages --------------- K-01 Serf collects debris. U-05 Engineer lays Concrete. K-01 Serf collects debris. U-05 Engineer lays Concrete. R-06 Scavenger collects Aluminum Leg. R-06 Scavenger collects Wheel. K-01 Serf collects debris. U-05 Engineer lays Concrete. U-05 Engineer builds a Wall. K-01 Serf collects debris. R-06 Scavenger collects Lgt. Ion Engine. R-06 Scavenger collects Med. Matter Pod. U-05 Engineer lays Concrete. K-01 Serf collects debris. U-05 Engineer lays Concrete. R-06 Scavenger collects Wheel. K-01 Serf collects debris. U-05 Engineer builds a Wall. G-34 Mercenary destroyed. U-05 Engineer destroyed. Map ----- +----------------------------------------------------+ | ?????????????????????????????????????????????????? | | ?????????????????????????????????????????????????? | | ?????????????????????????????????????????????????? | | ?????????????????????????????????????????????????? | | ?????????????????????????????????????????????????? | | ?????????????????????????????????????????????????? | | ?????????????????????????????????????????????????? | | ?????????????????????????????????????????????????? | | ?????????????????????????????????????????????????? | | ????????????????? ???? ???????????????????????? | | ?????????????????# ??? #????????????????????? | | ?????????????????# ?? #?? ?????????????????? | | ?????????????????# ??" #????????????#???????? | | ?????????????????# """ +????????????????????? | | ?????????????????# """ #????????????????????? | | ?????????????????# """ ##??#????????######### | | ?????????????????# [[#?????##?#???# | | ?????????????????# [ ##???????????# | | ?????????????????# a #???????#????# " | | ?????????????????# ###??????????# """ " | | ?????????????????# ##???#???#???# """ T | | ???????# ? #??## r #?????????#??# """ " | | ?????? ## # r = #????????????# " | | ?????? =%|*% = % #??##??#????## | | ?????? % =%g % = %= ###########?########+# | | ?????? g ] *@ # ! #????### | | ?????? # #############= # #??????# | | ??????? ????????????## !# = #??????# ! | | ???????????#???????#????# =#!= ##??##?# ! | | ???????????????###??????# =%+** #???#??# | | ??????????#????????????## !#=="""" #????#?## | | ?????????#?#???#?######## # """" #???????# | | ???????????????#?# ! #t # """" #???????# | | ???????????"?"??## #w ########??????????# | | ?????????????"??## + #???###???????????# | | ?????????????????#]] # #?????????????????# | | ?????????????????#]] =# #?????#???????????# | | ???????????? ????#]! # ###????#????#??#####+# | | ?????????????????######## ###?#??????#?????# | | ???????????? ???????????# #??#?????#?#?????# | | ??????????#????????###??#%##?#??#?#?#?#????# | | ????????????????????????# ##?#?????#?#??##?# | | ?????????????????????#??# ##??????#????##??# | | ?????????????#?????????## ##?#???##??#?#??## | | ????????????##?????????## #?##########?????# | | ??????????????????#?????# #?# #???#?# | | ????????#??????#??#?????# #?# #?????####### | | ????????# ???#?##??#?#?## ### """###?#?#?????? | | ????????# ????#????#???# #?# """####?????#??? | | ?????##### ############## #?#* """#????????#??? | +----------------------------------------------------+ Best States ------------- Heat Dissipation 38 Energy Generation 14 Energy Capacity 280 Matter Stores 300 Matter Capacity 300 Sight Range 16 Terrain Scan Range 16 Terrain Scan Density 10 Evasion (%) 44 Targeting Accuracy 8 Melee Accuracy 5 Recoil Reduction 2 Item Schematics ----------------- None Robot Schematics ------------------ None Fabricated ------------ Nothing Repaired ---------- Nothing Studied --------- None Alien Tech Used ----------------- None Achievements -------------- Dynamic Key Ghost 'Em Hydra Resistances Are Futile Challenges ------------ None Game ------ Seed ShadeMeleeSlamshotty Manual? 0 Play Time 00:22:33 Cumulative 12.1 hours Start 2025.10.21 @ 23:15:52 End 2025.10.21 @ 23:41:09 Sessions 1 Manual Loads 0 Difficulty Rogue Special Mode None Game No. 22 Rogue 14 Adventurer 8 Explorer 0 Win Type - Total 0 Types 0/0/0/0/0/0/0/0/0/0 Lore% 9 Gallery% 15 Achievement% 13 Wizard Run 0 Options --------- Layout 1 ASCII 0 Keyboard 0 Movement Arrows Keybinds 0 Fullscreen 1 Font 24/Smallcaps Map View 50x40 Zoom Use 0% Tactical HUD 0 Map Filters NONE Filters NONE Steam 1 RUN: 84563708-b999-4e2f-b134-bdf0f6260fed